bitfinex/quotes_ETHUSD_20250406
["timestamp","ask_amount","ask_price","bid_price","bid_amount"]
[1743901549030,10.86591901,1811.6,1811.4,3.86432]
[1743901551632,13.86591901,1811.6,1811.4,3.86432]
[1743901551831,10.86591901,1811.6,1811.4,3.86432]
[1743901554118,7.0,1811.5,1811.2,3.86464]
[1743901554317,4.84591901,1811.4,1811.2,7.72937]
[1743901554644,7.84591901,1811.4,1811.3,4.03734442]
[1743901555901,7.84591901,1811.4,1811.2,3.86464]
[1743901557432,7.84591901,1811.4,1811.2,7.72938]
[1743901557617,7.84591901,1811.4,1811.3,3.86462]
[1743901557929,11.84591901,1811.4,1811.3,3.86462]
[1743901558501,7.0,1811.4,1811.3,3.86462]
[1743901559033,7.0,1811.4,1811.3,4.03733745]
[1743901562041,7.0,1811.4,1811.3,3.86462]
[1743901562909,7.0,1811.4,1811.3,4.03733662]
[1743901566152,6.02,1811.6,1811.5,3.8642]
[1743901566312,10.02,1811.6,1811.5,3.8642]
[1743901566814,10.02,1811.6,1811.5,4.03691662]
[1743901567211,6.02,1811.6,1811.5,4.03691662]
[1743901570147,3.0,1811.7,1811.6,3.86386]
[1743901572321,3.0,1811.7,1811.6,4.636666]
[1743901573321,3.0,1811.7,1811.6,3.86386]
[1743901580962,9.02,1811.8,1811.7,3.86377]
[1743901581367,0.1,1811.9,1811.8,4.64086]
[1743901581670,4.1,1811.9,1811.8,4.81350538]
[1743901581869,4.1,1811.9,1811.8,5.68123292]
[1743901582363,0.1,1811.9,1811.8,5.68123292]
[1743901582745,0.1,1811.9,1811.8,5.73641626]
[1743901584005,0.1,1811.9,1811.8,5.68123292]
[1743901585796,11.184,1812.5,1811.8,5.68123292]
[1743901585797,6.02,1812.8,1812.6,3.86176]
[1743901586009,4.0,1812.7,1812.6,3.86185]
[1743901586506,4.0,1812.7,1812.6,3.91701363]
[1743901586706,4.0,1812.7,1812.6,3.86185]
[1743901586859,0.1,1812.9,1812.8,3.86142]
[1743901587061,4.1,1812.9,1812.8,3.86142]
[1743901587417,4.1,1812.9,1812.8,4.65412]
[1743901588103,0.1,1812.9,1812.8,4.65412]
[1743901607876,0.1,1812.9,1812.8,4.8266524]
[1743901608075,0.1,1812.9,1812.8,5.69547464]
[1743901614334,0.1,1812.9,1812.8,6.19547464]
[1743901626302,0.1,1812.9,1812.8,6.25061475]
[1743901626475,6.02,1813.5,1813.4,3.86015]
[1743901626674,9.02,1813.7,1813.4,3.86015]
[1743901626986,9.02,1813.7,1813.5,0.61368269]
[1743901627307,9.02,1813.7,1813.5,0.5585474]
[1743901627672,9.02,1813.7,1813.6,0.1725324]
[1743901627901,3.1,1813.9,1813.6,4.0322424]
[1743901628102,3.1,1813.9,1813.7,0.1725324]
[1743901628705,0.1,1813.9,1813.7,4.0319724]
[1743901629214,3.1,1813.9,1813.7,4.0319724]
[1743901629521,3.1,1813.9,1813.8,0.1725324]
[1743901630500,3.1,1813.9,1813.6,4.30142574]
[1743901630703,3.1,1813.9,1813.7,0.43014257]
[1743901630891,3.1,1813.9,1813.7,0.1724665]
[1743901631201,3.1,1813.9,1813.6,4.30151574]
[1743901631820,3.1,1813.9,1813.6,0.44182574]
[1743901632023,3.1,1813.9,1813.4,9.0181]
[1743901632317,0.55,1813.8,1813.4,5.158]
[1743901632701,0.55,1813.8,1813.5,0.1724845]
[1743901633436,7.92315985,1813.9,1813.5,3.85984]
[1743901633790,3.1,1813.9,1813.6,0.17247525]
[1743901633991,3.1,1813.9,1813.6,0.57570678]
[1743901634605,0.55,1813.8,1813.4,3.86001]
[1743901634818,3.1,1813.9,1813.5,0.05512939]
[1743901635020,3.1,1813.9,1813.4,3.86001]
[1743901635219,3.1,1813.9,1813.4,7.72005]
[1743901635503,3.1,1813.9,1813.5,4.08754165]
[1743901635704,3.1,1813.9,1813.5,4.82716354]
[1743901636050,3.1,1813.9,1813.6,0.17247837]
[1743901636659,3.1,1813.9,1813.5,4.65468517]
[1743901637553,3.1,1813.9,1813.5,8.51447517]
[1743901637844,3.1,1813.9,1813.6,0.17247273]
[1743901638052,3.1,1813.9,1813.6,1.04116752]
[1743901638607,3.1,1813.9,1813.5,3.85979]
[1743901639418,3.1,1813.9,1813.6,0.17247026]
[1743901641168,3.1,1813.9,1813.5,0.17247026]
[1743901641466,7.92315985,1813.9,1813.4,3.86014]
[1743901641666,8.68310985,1813.5,1812.8,5.52804224]
[1743901641963,7.82315985,1813.3,1812.8,0.86882224]
[1743901642125,7.82315985,1813.3,1812.9,0.1725271]
[1743901642917,7.82315985,1813.3,1813.0,0.1725271]
[1743901643517,7.82315985,1813.3,1812.7,7.72299]
[1743901643723,7.82315985,1813.3,1812.8,0.1725343]
[1743901644134,7.82315985,1813.3,1812.9,0.1725343]
[1743901644746,7.82315985,1813.3,1813.0,0.1725343]
[1743901645276,7.82315985,1813.3,1812.8,0.6725343]
[1743901645476,7.82315985,1813.3,1812.8,0.1725343]
[1743901645624,7.82315985,1813.3,1812.9,0.1725343]
[1743901646158,7.82315985,1813.3,1813.0,0.1725343]
[1743901646361,13.84315985,1813.3,1813.0,0.1725343]
[1743901646657,13.84315985,1813.3,1812.8,0.1725343]
[1743901646956,13.84315985,1813.3,1812.9,0.1725343]
[1743901647254,13.84315985,1813.3,1813.0,0.1725343]
[1743901647734,13.84315985,1813.3,1812.8,0.1725343]
[1743901647938,13.84315985,1813.3,1812.8,0.57594973]
[1743901648873,13.84315985,1813.3,1812.9,0.1725343]
[1743901649044,4.82315985,1813.1,1812.9,0.1725343]
[1743901649232,3.0,1813.0,1812.9,0.1725343]
[1743901649437,3.0,1813.0,1812.6,0.1725343]
[1743901649857,3.0,1813.0,1812.7,0.1725343]
[1743901650370,3.0,1813.0,1812.7,0.5]
[1743901651080,3.0,1813.0,1812.7,0.67255347]
[1743901651471,3.0,1813.0,1812.7,0.5]
[1743901651875,3.0,1813.0,1812.7,0.95343935]
[1743901652072,3.0,1813.0,1812.7,0.67255347]
[1743901652586,3.0,1813.0,1812.7,0.5]
[1743901652958,3.0,1813.0,1812.7,0.67255347]
[1743901653370,3.0,1813.0,1812.7,0.5]
[1743901654181,3.0,1813.0,1812.7,0.67255347]
[1743901654586,3.0,1813.0,1812.7,0.5]
[1743901654994,3.0,1813.0,1812.7,0.95343835]
[1743901655166,6.02,1813.1,1812.8,3.86135]
[1743901655485,6.02,1813.1,1812.8,4.03390347]
[1743901656061,6.02,1813.1,1812.8,4.03388347]
[1743901656392,6.02,1813.1,1812.9,0.40338835]
[1743901657461,6.02,1813.1,1812.8,0.17253705]
[1743901658085,6.57,1813.2,1812.8,0.17253705]
[1743901658694,0.55,1813.0,1812.8,0.17253705]
[1743901658999,0.55,1813.0,1812.7,1.1259754]
[1743901661701,0.55,1813.0,1812.8,0.17253705]
[1743901666069,0.55,1813.0,1812.6,0.17253705]
[1743901666275,0.55,1813.0,1812.6,0.57599676]
[1743901666684,0.55,1813.0,1812.7,0.17253705]
[1743901667284,0.55,1813.0,1812.6,4.26526971]
[1743901668203,0.55,1813.0,1812.7,0.17255629]
[1743901668575,3.55,1813.0,1812.8,0.17255629]
[1743901669178,3.55,1813.0,1812.6,4.26529971]
[1743901669512,3.55,1813.0,1812.7,0.17255869]
[1743901669825,9.57,1813.0,1812.7,0.17255869]
[1743901670190,9.57,1813.0,1812.8,0.17255869]
[1743901670801,9.57,1813.0,1812.6,0.40345971]
[1743901671112,9.57,1813.0,1812.7,0.17255861]
[1743901671613,9.57,1813.0,1812.8,0.17255861]
[1743901672315,9.57,1813.0,1812.9,0.17255861]
[1743901681225,6.57,1813.0,1812.9,0.17255861]
[1743901681431,6.57,1813.0,1812.9,0.57595447]
[1743901682125,6.02,1813.0,1812.9,4.43716447]
[1743901682341,6.02,1813.0,1812.9,5.25346447]
[1743901683192,6.57,1813.0,1812.9,5.25346447]
[1743901684137,6.57,1813.0,1812.9,1.39225447]
[1743901684736,6.02,1813.0,1812.9,1.39225447]
[1743901685431,6.57,1813.0,1812.9,1.39225447]
[1743901685602,6.57,1813.0,1812.9,0.98885861]
[1743901686136,6.57,1813.0,1812.9,0.17255861]
[1743901697251,9.57,1813.0,1812.9,0.17255861]
[1743901697837,0.55,1812.9,1812.5,0.8163]
[1743901698241,0.55,1812.9,1812.6,0.1725639]
[1743901698740,0.55,1812.9,1812.7,0.1725639]
[1743901699451,0.55,1812.9,1812.8,0.1725639]
[1743901701121,0.95530355,1812.9,1812.8,0.1725639]
[1743901705641,3.95888514,1812.9,1812.8,0.1725639]
[1743901707958,6.02,1813.0,1812.8,0.9283639]
[1743901708163,6.02,1813.0,1812.9,3.86121]
[1743901708329,9.02358159,1813.3,1812.9,4.89885929]
[1743901708529,0.55,1813.2,1812.9,1.03764929]
[1743901708828,0.55,1813.2,1813.0,0.1725639]
[1743901709029,0.55,1813.2,1813.1,0.1725639]
[1743901718771,0.55,1813.2,1813.1,0.22771242]
[1743901718946,0.55,1813.2,1813.1,1.04308714]
[1743901720474,0.55,1813.2,1813.1,1.90363564]
[1743901720640,0.55,1813.2,1813.1,5.76442564]
[1743901721372,0.55,1813.2,1813.1,5.70927714]
[1743901722078,0.55,1813.2,1813.1,5.7644255]
[1743901722383,0.55,1813.2,1813.1,5.70927714]
[1743901723176,0.55,1813.2,1813.1,1.84848714]
[1743901727277,0.55,1813.2,1813.1,0.9779639]
[1743901727473,0.55,1813.2,1813.1,0.1725639]
[1743901727679,5.37498452,1813.2,1813.1,0.1725639]
[1743901728277,5.37498452,1813.2,1812.7,0.1725639]
[1743901729178,5.37498452,1813.2,1812.8,0.6725639]
[1743901729378,5.37498452,1813.2,1812.9,0.1725639]
[1743901729929,5.37498452,1813.2,1813.0,0.1725639]
[1743901730466,5.37498452,1813.2,1812.7,3.86156]
[1743901730664,5.37498452,1813.2,1812.8,0.386156]
[1743901730966,5.37498452,1813.2,1812.9,0.17253985]
[1743901731391,11.39498452,1813.2,1812.9,0.17253985]
[1743901731553,11.39498452,1813.2,1813.0,0.17253985]
[1743901731755,3.5529686,1813.1,1813.0,0.17253985]
[1743901735312,10.4137586,1813.1,1813.0,0.17253985]
[1743901735603,10.4137586,1813.1,1812.6,0.8262]
[1743901735604,0.55,1813.0,1812.6,0.8262]
[1743901735908,0.55,1812.8,1812.6,0.8262]
[1743901736208,0.55,1812.8,1812.7,0.17256347]
[1743901744118,0.55,1812.8,1812.7,0.67256347]
[1743901744314,0.55,1812.8,1812.7,1.20861182]
[1743901744512,0.55,1813.0,1812.7,1.96671182]
[1743901744719,0.55,1813.0,1812.7,2.0218716]
[1743901744924,0.55,1813.0,1812.8,0.17256347]
[1743901745329,0.55,1813.0,1812.9,0.17256347]
[1743901755245,0.55,1813.0,1812.9,0.98312282]
[1743901755439,6.02,1813.2,1812.9,5.27354475]
[1743901755637,0.55,1813.1,1813.0,0.17256347]
[1743901758958,3.5529686,1813.1,1813.0,0.17256347]
[1743901764470,0.55,1813.1,1813.0,0.17256347]
[1743901767132,0.55,1813.1,1813.0,0.92756347]
[1743901767365,0.55,1813.1,1813.0,1.40643682]
[1743901768138,0.55,1813.1,1813.0,0.92756347]
[1743901768338,0.55,1813.1,1813.0,0.17256347]
[1743901769278,0.55,1813.1,1813.0,0.92756347]
[1743901770893,0.55,1812.7,1812.0,0.755]
[1743901771081,3.5529686,1812.5,1812.0,5.19355]
[1743901771265,3.5529686,1812.5,1812.0,1.3305]
[1743901771581,0.55,1812.2,1812.1,0.5]
[1743901772763,17.29559,1812.2,1811.5,0.8011]
[1743901772970,17.29559,1812.2,1811.5,1.267631]
[1743901772971,0.55,1811.8,1811.5,1.267631]
[1743901773762,0.55,1812.0,1811.5,1.267631]
[1743901774294,0.55,1812.0,1811.5,5.131741]
[1743901774480,0.96606141,1812.0,1811.5,5.131741]
[1743901775404,0.96606141,1812.0,1811.6,3.86388]
[1743901775587,0.96606141,1812.0,1811.7,0.386388]
[1743901775961,0.96606141,1812.0,1811.7,4.30529633]
[1743901776897,0.55,1812.0,1811.7,4.30529633]
[1743901777202,6.02,1812.2,1811.8,4.66316]
[1743901777365,6.02,1812.3,1811.9,3.86334]
[1743901777565,0.55,1812.2,1811.9,4.715973]
[1743901778001,0.55,1812.2,1812.0,3.86311]
[1743901779188,6.02,1812.3,1812.0,3.86311]
[1743901779494,0.55,1812.2,1812.0,3.86311]
[1743901779793,0.55,1812.2,1812.0,4.7210183]
[1743901780692,0.55,1812.2,1812.1,0.7996]
[1743901781028,0.55,1812.2,1812.1,4.66252]
[1743901781204,4.83237965,1812.6,1812.1,4.66252]
[1743901781205,0.55,1812.5,1812.1,4.66252]
[1743901781380,0.96071773,1812.5,1812.1,4.66252]
[1743901781580,0.96071773,1812.5,1812.1,5.60085883]
[1743901782214,0.96071773,1812.5,1812.1,9.46364883]
[1743901782584,0.55,1812.5,1812.1,9.46364883]
[1743901782783,0.55,1812.5,1812.1,5.60072883]
[1743901783507,10.85237965,1812.6,1812.1,5.60072883]
[1743901783508,6.02,1812.6,1812.3,3.86241]
[1743901783678,6.02,1812.6,1812.4,1.197041]
[1743901783884,0.55,1812.5,1812.4,5.059321]
[1743901784078,0.55,1812.5,1812.4,1.197041]
[1743901785290,0.55,1812.5,1812.4,5.11449035]
[1743901785528,4.83237965,1813.0,1812.5,3.86206]
[1743901785725,4.83237965,1813.0,1812.6,3.86169]
[1743901785884,0.55,1812.9,1812.6,3.86169]
[1743901786218,0.55,1812.9,1812.6,7.72344]
[1743901786819,0.55,1812.9,1812.6,3.86169]
[1743901788585,0.55,1812.9,1812.5,4.37341704]
[1743901789023,0.55,1812.9,1812.5,0.51142704]
[1743901789399,0.55,1812.9,1812.5,4.37345704]
[1743901795124,0.55,1812.9,1812.6,5.1098757]
[1743901796418,6.02,1813.2,1812.7,0.05516103]
[1743901796621,6.02,1813.2,1812.9,0.8071]
[1743901796925,0.55,1813.2,1812.9,0.8071]
[1743901799125,5.38237965,1813.2,1812.9,0.8071]
[1743901799314,7.20865562,1813.2,1812.9,0.8071]
[1743901799515,7.20865562,1813.2,1812.6,3.86184]
[1743901799516,7.20865562,1813.2,1812.6,0.8071]
[1743901799713,7.20865562,1813.2,1812.7,3.86164]
[1743901800111,7.61682479,1813.2,1812.7,3.86164]
[1743901800425,7.61682479,1813.2,1812.7,7.72314]
[1743901800625,5.79054882,1813.2,1812.8,0.8071]
[1743901802626,5.79054882,1813.2,1812.8,4.66851]
[1743901804622,5.79054882,1813.2,1812.8,0.8071]
[1743901805630,5.79054882,1813.2,1812.7,3.86149]
[1743901807952,5.79054882,1813.2,1812.6,4.66885]
[1743901808144,5.38237965,1813.0,1812.6,5.161]
[1743901808850,5.38237965,1813.0,1812.5,4.66905]
[1743901809041,5.38237965,1813.0,1812.6,3.86184]
[1743901809350,5.38237965,1813.0,1812.7,3.86162]
[1743901810253,5.38237965,1813.0,1812.6,3.86171]
[1743901810457,5.38237965,1813.0,1812.7,3.86156]
[1743901810658,0.55,1813.1,1812.8,0.807]
[1743901810855,5.25598749,1813.2,1812.8,4.66835]
[1743901811055,0.42360784,1813.2,1812.9,3.86119]
[1743901811252,6.02,1813.3,1812.9,3.86119]
[1743901811439,0.55,1813.2,1812.9,3.86119]
[1743901811641,0.55,1813.2,1812.8,9.83729]
[1743901811848,0.55,1813.2,1812.8,14.682319]
[1743901812157,5.38237965,1813.0,1812.4,0.386241]
[1743901812353,0.55,1812.8,1812.4,0.05516717]
[1743901812557,0.55,1812.8,1812.4,3.86215]
[1743901812725,0.55,1812.8,1812.5,3.86205]
[1743901813624,0.96948716,1812.8,1812.5,3.86205]
[1743901813965,0.55,1812.8,1812.5,7.72403]
[1743901814337,0.55,1812.8,1812.5,3.86198]
[1743901814543,0.55,1812.8,1812.4,3.86228]
[1743901814751,0.55,1812.8,1812.5,3.86204]
[1743901815555,0.55,1812.8,1812.4,8.191348]
[1743901815871,0.55,1812.8,1812.4,8.191248]
[1743901816635,0.55,1812.8,1812.4,4.329058]
[1743901817046,0.55,1812.8,1812.4,3.86213]
[1743901817341,5.38237965,1812.8,1812.3,9.84548]
[1743901817865,5.38237965,1812.8,1812.3,13.70783]
[1743901818163,5.80086853,1812.8,1812.3,13.70783]
[1743901818569,5.80086853,1812.8,1812.3,9.03835]
[1743901818750,7.36908538,1812.8,1812.3,5.176]
[1743901818965,0.55,1812.5,1812.1,3.8629]
[1743901819276,0.55,1812.3,1811.9,9.04234]
[1743901819765,0.55,1812.3,1811.9,12.90553]
[1743901819963,0.55,1812.3,1812.0,1.290553]
[1743901821067,0.55,1812.3,1811.9,3.86319]
[1743901821433,4.83237965,1812.2,1811.8,28.71155]
[1743901821660,0.55,1812.1,1811.8,9.04055]
[1743901822140,0.55,1812.1,1811.8,5.177]
[1743901822341,0.55,1812.1,1812.0,0.5]
[1743901829302,1.08823797,1812.1,1812.0,0.5]
[1743901829453,10.97115797,1812.1,1811.4,9.85408]
[1743901829780,0.55,1811.6,1811.5,3.8642]
[1743901831490,6.57,1811.6,1811.3,3.86458]
[1743901831789,0.55,1811.4,1811.1,0.9158]
[1743901831981,0.55,1811.4,1811.2,3.86472]
[1743901834073,0.55,1811.4,1811.3,3.86462]
[1743901834271,0.55,1811.5,1811.4,4.68016]
[1743901834473,6.02,1811.6,1811.5,3.8642]
[1743901834681,0.55,1811.9,1811.6,3.86392]
[1743901835069,13.85237965,1812.0,1811.6,3.86392]
[1743901835280,13.85237965,1812.0,1811.6,7.72778]
[1743901835479,0.55,1811.9,1811.6,7.72778]
[1743901835695,0.55,1811.9,1811.6,7.72772]
[1743901835868,0.55,1811.9,1811.6,3.86386]
[1743901836405,0.55,1811.9,1811.6,8.59151807]
[1743901836600,0.55,1811.9,1811.7,4.67226]
[1743901837598,0.55,1811.9,1811.7,0.8085]
[1743901838095,11.2715715,1812.0,1811.7,0.8085]
[1743901838096,10.85237965,1812.0,1811.7,4.67219]
[1743901838314,0.55,1811.9,1811.7,4.67219]
[1743901838470,0.55,1811.9,1811.7,5.61217181]
[1743901839066,0.55,1811.9,1811.7,0.8085]
[1743901839271,0.55,1811.9,1811.6,3.86386]
[1743901839272,0.55,1811.9,1811.6,4.67236]
[1743901839483,0.55,1811.9,1811.6,0.8085]
[1743901840087,0.55,1811.9,1811.6,4.67239]
[1743901844510,0.55,1811.9,1811.6,8.53623]
[1743901844713,0.55,1811.9,1811.6,5.6114066]
[1743901847306,0.55,1811.9,1811.6,1.7475666]
[1743901850021,0.55,1811.9,1811.6,0.9390666]
[1743901850520,0.55,1811.9,1811.6,4.8029566]
[1743901854632,0.55,1811.9,1811.6,4.8029166]
[1743901858550,0.55,1811.9,1811.6,8.6668066]
[1743901859042,0.55,1811.9,1811.6,4.8029166]
[1743901859243,0.55,1811.9,1811.6,3.86385]
[1743901860753,0.55,1811.9,1811.7,3.86375]
[1743901860914,0.55,1811.9,1811.6,3.86392]
[1743901861916,0.55,1811.9,1811.6,7.72777]
[1743901862463,0.55,1811.9,1811.6,3.86385]
[1743901865904,9.88234,1812.4,1811.8,3.86356]
[1743901866052,4.83237965,1812.3,1812.0,3.86307]
[1743901866759,0.55,1812.2,1812.0,3.86307]
[1743901868491,0.55,1812.2,1811.8,9.02255]
[1743901868678,0.55,1812.2,1811.8,9.02246]
[1743901869492,0.55,1812.2,1811.8,9.02245]
[1743901870284,0.55,1812.2,1811.8,12.8859]
[1743901871187,0.55,1812.0,1811.6,3.86385]
[1743901871485,0.55,1812.0,1811.6,9.02285]
[1743901871692,0.55,1812.0,1811.7,3.86371]
[1743901872571,0.55,1812.0,1811.6,9.02285]
[1743901872961,0.55,1812.0,1811.6,9.02297]
[1743901874158,1.08823797,1812.0,1811.6,9.02297]
[1743901874695,0.55,1811.8,1811.6,5.159]
[1743901875261,0.55,1811.8,1811.5,4.718496]
[1743901877992,0.55,1811.8,1811.7,3.86377]
[1743901878197,0.55,1811.9,1811.7,3.86377]
[1743901879292,0.55,1811.9,1811.7,7.72739]
[1743901880003,0.55,1811.9,1811.7,3.86362]
[1743901881107,0.55,1811.9,1811.7,7.72724]
[1743901881305,0.55,1811.9,1811.7,3.86362]
[1743901881676,0.55,1811.9,1811.6,4.62488]
[1743901881882,0.55,1811.9,1811.6,3.86398]
[1743901882777,0.55,1811.9,1811.6,7.72785]
[1743901884088,0.55,1811.9,1811.6,3.86387]
[1743901884910,0.55,1811.9,1811.6,7.72777]
[1743901885429,0.55,1811.9,1811.7,3.86376]
[1743901886913,6.02,1812.0,1811.9,3.86334]
[1743901887113,10.85237965,1812.6,1812.2,3.86262]
[1743901887313,0.55,1812.5,1812.2,3.86262]
[1743901887629,11.26140878,1812.6,1812.2,3.86262]
[1743901887791,13.07372166,1812.6,1812.2,3.86262]
[1743901887997,0.55,1812.5,1812.2,3.86262]
[1743901893528,0.55,1812.5,1812.1,3.86286]
[1743901893899,0.55,1812.3,1812.1,3.86286]
[1743901896731,0.55,1812.3,1812.1,7.72567]
[1743901896938,0.55,1812.5,1812.2,4.635267]
[1743901898436,0.55,1812.5,1812.2,4.635147]
[1743901898639,0.55,1812.5,1812.3,3.86241]
[1743901900813,0.55,1812.5,1812.2,4.635247]
[1743901902343,0.55,1812.5,1812.2,8.497827]
[1743901904447,0.55,1812.5,1812.3,3.86243]
[1743901905652,0.55,1812.5,1812.4,4.61458]
[1743901906022,9.02,1812.9,1812.5,3.862]
[1743901906232,9.02,1812.9,1812.5,7.72398]
[1743901906517,0.55,1812.8,1812.5,7.72398]
[1743901907016,0.55,1812.8,1812.6,3.86182]
[1743901907921,0.55,1812.8,1812.6,4.6342]
[1743901908319,0.55,1812.8,1812.7,3.86164]
[1743901911966,5.38237965,1812.8,1812.6,0.77238]
[1743901912172,5.38237965,1812.8,1812.4,3.86222]
[1743901912456,5.38237965,1812.8,1812.3,9.8692377]
[1743901913760,9.24382965,1812.8,1812.3,9.8692377]
[1743901915256,13.10540965,1812.8,1812.3,6.0067577]
[1743901915462,13.10540965,1812.8,1812.3,5.157]
[1743901916061,19.12540965,1812.8,1812.3,5.157]
[1743901916861,0.55,1812.5,1812.3,5.157]
[1743901917065,0.55,1812.3,1811.9,0.7595]
[1743901917383,0.55,1812.3,1811.6,24.847]
[1743901917384,0.55,1812.1,1811.7,4.636413]
[1743901917529,0.55,1812.1,1811.5,9.77959]
[1743901917530,0.55,1812.1,1811.6,3.86397]
[1743901918052,4.41295,1812.1,1811.6,3.86397]
[1743901918246,0.55,1812.1,1811.6,7.7278]
[1743901918882,0.96388505,1812.1,1811.6,7.7278]
[1743901919404,0.96388505,1812.1,1811.7,3.86375]
[1743901919606,0.96388505,1812.1,1811.7,4.636508]
[1743901920192,0.96388505,1812.1,1811.8,3.86354]
[1743901920368,0.55,1812.1,1811.8,3.86354]
[1743901921587,0.55,1812.1,1811.8,7.72699]
[1743901921791,0.55,1812.1,1811.8,8.53269]
[1743901921988,0.55,1812.1,1811.8,5.5996948]
[1743901922464,0.55,1812.1,1811.9,3.86325]
[1743901922658,6.02,1812.3,1811.9,3.86324]
[1743901922879,6.02,1812.3,1812.1,3.86277]
[1743901923489,0.55,1812.2,1812.1,3.86277]
[1743901923696,0.55,1812.2,1812.1,4.635359]
[1743901923882,0.55,1812.2,1812.1,5.441059]
[1743901925926,6.02,1812.3,1812.2,3.8627]
[1743901926285,6.57,1812.3,1812.2,3.8627]
[1743901926893,10.85237965,1812.8,1812.4,3.86213]
[1743901927089,0.55,1812.7,1812.4,7.72426]
[1743901927719,6.02,1812.8,1812.6,3.86177]
[1743901928412,0.55,1812.7,1812.6,3.86177]
[1743901928613,6.02,1813.1,1812.7,3.86164]
[1743901928800,10.85988321,1813.2,1812.8,3.86135]
[1743901929187,0.55,1813.1,1812.8,3.86135]
[1743901930192,0.55,1812.9,1812.4,5.157]
[1743901930389,3.55,1812.9,1812.4,9.01918]
[1743901931090,4.83237965,1812.8,1812.4,3.86218]
[1743901931388,0.55,1812.7,1812.4,3.86218]
[1743901932415,0.55,1812.7,1812.4,4.634629]
[1743901932986,0.55,1812.8,1812.4,8.496769]
[1743901934314,0.55,1812.8,1812.4,4.634589]
[1743901934508,0.55,1812.8,1812.4,3.86214]
[1743901935722,0.55,1812.8,1812.4,7.72427]
[1743901938015,0.55,1812.8,1812.4,3.86213]
[1743901938921,4.41143,1812.8,1812.3,7.72483]
[1743901939336,10.43143,1812.8,1812.3,7.72483]
[1743901939537,12.64394597,1812.8,1812.3,7.72483]
[1743901939843,12.59394597,1812.8,1812.3,7.72483]
[1743901940200,10.38143,1812.8,1812.3,7.72483]
[1743901940785,10.38143,1812.8,1812.3,3.86235]
[1743901942481,10.38143,1812.8,1812.2,4.66832]
[1743901942482,0.55,1812.6,1812.2,4.66832]
[1743901943191,0.55,1812.6,1812.2,8.53088]
[1743901944995,0.55,1812.6,1812.2,4.66826]
[1743901945151,0.55,1812.6,1812.2,5.7280449]
[1743901946200,0.55,1812.4,1812.0,3.8631]
[1743901950011,0.95464406,1812.4,1812.0,3.8631]
[1743901950616,4.81701406,1812.4,1811.9,3.86317]
[1743901951410,4.81701406,1812.4,1811.9,7.72638]
[1743901951817,4.81701406,1812.4,1811.9,3.86317]
[1743901952311,4.81701406,1812.4,1811.9,5.32284648]
[1743901953914,8.67944406,1812.4,1811.9,5.32284648]
[1743901954818,4.81701406,1812.4,1811.9,5.32284648]
[1743901957744,8.67946406,1812.4,1811.9,5.32284648]
[1743901958262,0.55,1812.2,1811.8,4.7940848]
[1743901959293,4.41323,1812.0,1811.5,3.86418]
[1743901959444,4.41367,1811.8,1811.3,4.66342]
[1743901959647,4.41367,1811.8,1811.3,8.5279]
[1743901960344,0.55,1811.8,1811.4,3.8644]
[1743901960545,0.55,1811.8,1811.4,4.717168]
[1743901962536,0.97038575,1811.8,1811.4,4.717168]
[1743901966246,0.97038575,1811.8,1811.5,3.86417]
[1743901969476,0.97038575,1811.8,1811.4,4.717168]
[1743901969761,0.97038575,1811.8,1811.4,4.717058]
[1743901970460,0.97038575,1811.8,1811.4,8.581328]
[1743901970793,0.97038575,1811.8,1811.4,4.717038]
[1743901971591,0.97038575,1811.8,1811.4,8.581298]
[1743901973195,0.97038575,1811.8,1811.5,4.7222798]
[1743901976997,0.97038575,1811.8,1811.5,0.8581298]
[1743901977203,0.97038575,1811.8,1811.4,3.86426]
[1743901980494,0.97038575,1811.8,1811.4,7.72854]
[1743901980793,0.97038575,1811.8,1811.4,3.86426]
[1743901981499,0.97038575,1811.8,1811.4,7.72853]
[1743901982360,0.97038575,1811.8,1811.4,3.86426]
[1743901982563,0.97038575,1811.8,1811.4,4.717027]
[1743901983999,4.83395575,1811.8,1811.4,4.717027]
[1743901984905,4.83395575,1811.8,1811.4,3.86426]
[1743901985315,4.83237965,1811.7,1811.3,3.86461]
[1743901985464,7.41484,1811.2,1811.1,0.1]
[1743901985686,18.26721965,1811.2,1811.1,0.1]
[1743901986096,13.43484,1811.2,1811.1,0.1]
[1743901987318,15.64803097,1811.2,1811.1,0.1]
[1743901990232,16.07148422,1811.2,1811.1,0.1]
[1743902003433,13.85829325,1811.2,1811.1,0.1]
[1743902012778,6.57,1811.2,1811.1,0.1]
[1743902013136,6.02,1811.2,1811.1,0.1]
[1743902013337,6.57,1811.2,1811.1,0.1]
[1743902017665,3.86401,1811.6,1811.2,0.8156]
[1743902017835,8.69624965,1811.7,1811.2,8.545]
[1743902018036,8.69624965,1811.7,1811.4,0.8156]
[1743902018250,0.55,1811.6,1811.4,0.8156]
[1743902020337,4.41413,1811.6,1811.3,1.6701]
[1743902020613,0.55,1811.4,1811.3,0.8156]
[1743902021076,0.647344,1811.4,1811.1,4.78059]
[1743902021583,6.667344,1811.4,1811.1,0.1]
[1743902021870,4.41484,1811.2,1811.1,0.1]
[1743902022037,10.43484,1811.2,1811.1,0.1]
[1743902022343,12.74538597,1811.2,1811.1,0.1]